fUSD/lending_fUSD_20260516
["ID","MTS","AMOUNT","RATE_DAILY","PERIOD"]
[422390614,1778920233000,-2000.0,0.0001412,2]
[422390611,1778920233000,-2312.0,0.0001404,2]
[422390613,1778920233000,-2312.0,0.0001404,2]
[422390608,1778920233000,-2312.0,0.0001372,2]
[422390665,1778920234000,-429.43968423,0.0001468,2]
[422390664,1778920234000,-7771.75205421,0.00014624,2]
[422390668,1778920234000,-2312.0,0.0001468,2]
[422390658,1778920234000,-7771.75205421,0.00014569,2]
[422390662,1778920234000,-3000.0,0.000146,5]
[422390667,1778920234000,-2312.0,0.0001468,2]
[422390661,1778920234000,-500.0,0.00014599,2]
[422390663,1778920234000,-429.43968423,0.00014624,2]
[422390666,1778920234000,-7771.75205421,0.0001468,2]
[422390660,1778920234000,-501.34591019,0.00014599,2]
[422390671,1778920234000,-212.0,0.00014688,2]
[422390670,1778920234000,-95.01776496,0.0001468,2]
[422390672,1778920234000,-778.24165845,0.00014693,2]
[422390673,1778920234000,-600.0,0.000147,5]
[422390674,1778920234000,-778.24165839,0.00014723,2]
[422390677,1778920234000,-429.43968423,0.0001479,2]
[422390676,1778920234000,-7771.75205421,0.00014735,2]
[422390675,1778920234000,-429.43968423,0.00014735,2]
[422390680,1778920234000,-600.0,0.000148,5]
[422390669,1778920234000,-2216.98223504,0.0001468,2]
[422390659,1778920234000,-500.0,0.00014599,2]
[422390678,1778920234000,-7771.75205421,0.0001479,2]
[422390654,1778920234000,-429.43968423,0.00014514,2]
[422390637,1778920234000,-500.0,0.00014481,2]
[422390645,1778920234000,-500.0,0.00014481,2]
[422390644,1778920234000,-500.0,0.00014481,2]
[422390641,1778920234000,-501.56132056,0.00014481,2]
[422390638,1778920234000,-500.0,0.00014481,2]
[422390639,1778920234000,-500.0,0.00014481,2]
[422390636,1778920234000,-500.0,0.00014481,2]
[422390642,1778920234000,-500.0,0.00014481,2]
[422390643,1778920234000,-500.0,0.00014481,2]
[422390653,1778920234000,-1680.0,0.00014508,2]
[422390640,1778920234000,-500.0,0.00014481,2]
[422390646,1778920234000,-500.0,0.00014481,2]
[422390656,1778920234000,-430.56,0.00014566,2]
[422390657,1778920234000,-429.43968423,0.00014569,2]
[422390647,1778920234000,-500.0,0.00014481,2]
[422390648,1778920234000,-500.0,0.00014481,2]
[422390652,1778920234000,-2400.0,0.000145,5]
[422390650,1778920234000,-500.0,0.00014481,2]
[422390651,1778920234000,-500.0,0.00014481,2]
[422390649,1778920234000,-500.0,0.00014481,2]
[422390655,1778920234000,-7771.75205421,0.00014514,2]
[422390679,1778920234000,-502.495938,0.00014793,2]
[422390683,1778920234000,-7771.75205421,0.00014845,2]
[422390682,1778920234000,-429.43968423,0.00014845,2]
[422390712,1778920234000,-500.0,0.00014999,2]
[422390709,1778920234000,-500.0,0.00014999,2]
[422390706,1778920234000,-151.0,0.00014997,2]
[422390704,1778920234000,-5000.01,0.0001497,2]
[422390708,1778920234000,-500.0,0.00014999,2]
[422390711,1778920234000,-500.0,0.00014999,2]
[422390714,1778920234000,-500.0,0.00014999,2]
[422390725,1778920234000,-531.95367997,0.00014999,2]
[422390715,1778920234000,-472.41037642,0.00014999,2]
[422390713,1778920234000,-273.75031902,0.00014999,2]
[422390716,1778920234000,-500.0,0.00014999,2]
[422390718,1778920234000,-531.95367997,0.00014999,2]
[422390719,1778920234000,-531.95367997,0.00014999,2]
[422390723,1778920234000,-531.95367997,0.00014999,2]
[422390722,1778920234000,-531.95367997,0.00014999,2]
[422390721,1778920234000,-531.95367997,0.00014999,2]
[422390720,1778920234000,-531.95367997,0.00014999,2]
[422390724,1778920234000,-531.95367997,0.00014999,2]
[422390726,1778920234000,-531.95367997,0.00014999,2]
[422390681,1778920234000,-255.0,0.00014821,2]
[422390717,1778920234000,-274.61223754,0.00014999,2]
[422390707,1778920234000,-500.0,0.00014998,2]
[422390685,1778920234000,-320.0,0.00014865,2]
[422390702,1778920234000,-182.11016825,0.0001496,2]
[422390710,1778920234000,-500.0,0.00014999,2]
[422390686,1778920234000,-320.0,0.0001487,2]
[422390684,1778920234000,-320.0,0.00014846,2]
[422390687,1778920234000,-320.0,0.00014886,2]
[422390689,1778920234000,-429.43968423,0.000149,2]
[422390691,1778920234000,-3422.89664464,0.000149,2]
[422390688,1778920234000,-5000.0,0.000149,2]
[422390692,1778920234000,-584.0,0.000149,2]
[422390694,1778920234000,-3351.37380083,0.000149,2]
[422390690,1778920234000,-600.0,0.000149,5]
[422390700,1778920234000,-263.39072739,0.00014939,2]
[422390696,1778920234000,-1512.86999631,0.000149,2]
[422390697,1778920234000,-1049.24108504,0.000149,2]
[422390695,1778920234000,-2926.71134335,0.000149,2]
[422390701,1778920234000,-2124.92374319,0.00014939,2]
[422390705,1778920234000,-190.0,0.00014986,2]
[422390699,1778920234000,-2141.89356103,0.00014939,2]
[422390698,1778920234000,-778.18905031,0.000149,2]
[422390693,1778920234000,-413.48160874,0.000149,2]
[422390703,1778920234000,-11110.98,0.0001497,2]
[422390767,1778920235000,-531.95367997,0.00014999,2]
[422390765,1778920235000,-531.95367997,0.00014999,2]
[422390769,1778920235000,-529.15392376,0.00014999,2]
[422390763,1778920235000,-531.95367997,0.00014999,2]
[422390761,1778920235000,-531.95367997,0.00014999,2]
[422390762,1778920235000,-531.95367997,0.00014999,2]
[422390760,1778920235000,-531.95367997,0.00014999,2]
[422390770,1778920235000,-529.15392376,0.00014999,2]
[422390757,1778920235000,-531.95367997,0.00014999,2]
[422390766,1778920235000,-531.95367997,0.00014999,2]
[422390771,1778920235000,-529.15392376,0.00014999,2]
[422390764,1778920235000,-531.95367997,0.00014999,2]
[422390780,1778920235000,-529.15392376,0.00014999,2]
[422390772,1778920235000,-529.15392376,0.00014999,2]
[422390775,1778920235000,-529.15392376,0.00014999,2]
[422390773,1778920235000,-529.15392376,0.00014999,2]
[422390774,1778920235000,-529.15392376,0.00014999,2]
[422390782,1778920235000,-529.15392376,0.00014999,2]
[422390777,1778920235000,-529.15392376,0.00014999,2]
[422390783,1778920235000,-529.15392376,0.00014999,2]
[422390754,1778920235000,-531.95367997,0.00014999,2]
[422390779,1778920235000,-529.15392376,0.00014999,2]
[422390781,1778920235000,-529.15392376,0.00014999,2]
[422390776,1778920235000,-529.15392376,0.00014999,2]
[422390778,1778920235000,-529.15392376,0.00014999,2]
[422390785,1778920235000,-529.15392376,0.00014999,2]
[422390768,1778920235000,-531.95367997,0.00014999,2]
[422390756,1778920235000,-531.95367997,0.00014999,2]
[422390750,1778920235000,-531.95367997,0.00014999,2]
[422390755,1778920235000,-531.95367997,0.00014999,2]
[422390727,1778920235000,-531.95367997,0.00014999,2]
[422390729,1778920235000,-531.95367997,0.00014999,2]
[422390730,1778920235000,-531.95367997,0.00014999,2]
[422390732,1778920235000,-531.95367997,0.00014999,2]
[422390728,1778920235000,-531.95367997,0.00014999,2]
[422390734,1778920235000,-531.95367997,0.00014999,2]
[422390731,1778920235000,-531.95367997,0.00014999,2]
[422390733,1778920235000,-531.95367997,0.00014999,2]
[422390736,1778920235000,-531.95367997,0.00014999,2]
[422390735,1778920235000,-531.95367997,0.00014999,2]
[422390737,1778920235000,-531.95367997,0.00014999,2]
[422390745,1778920235000,-531.95367997,0.00014999,2]
[422390752,1778920235000,-531.95367997,0.00014999,2]
[422390739,1778920235000,-531.95367997,0.00014999,2]
[422390740,1778920235000,-531.95367997,0.00014999,2]
[422390743,1778920235000,-531.95367997,0.00014999,2]
[422390746,1778920235000,-531.95367997,0.00014999,2]
[422390742,1778920235000,-531.95367997,0.00014999,2]
[422390744,1778920235000,-531.95367997,0.00014999,2]
[422390795,1778920235000,-529.15392376,0.00014999,2]
[422390747,1778920235000,-531.95367997,0.00014999,2]
[422390751,1778920235000,-531.95367997,0.00014999,2]
[422390748,1778920235000,-531.95367997,0.00014999,2]
[422390758,1778920235000,-531.95367997,0.00014999,2]
[422390759,1778920235000,-531.95367997,0.00014999,2]
[422390753,1778920235000,-531.95367997,0.00014999,2]
[422390741,1778920235000,-531.95367997,0.00014999,2]
[422390784,1778920235000,-529.15392376,0.00014999,2]
[422390738,1778920235000,-531.95367997,0.00014999,2]
[422390793,1778920235000,-529.15392376,0.00014999,2]
[422390819,1778920235000,-500.0,0.00014999,2]
[422390821,1778920235000,-500.0,0.00014999,2]
[422390824,1778920235000,-500.0,0.00014999,2]
[422390825,1778920235000,-529.46048419,0.00014999,2]
[422390823,1778920235000,-500.0,0.00014999,2]
[422390827,1778920235000,-500.0,0.00014999,2]
[422390822,1778920235000,-399.11389767,0.00014999,2]
[422390829,1778920235000,-476.99893723,0.00014999,2]
[422390826,1778920235000,-500.0,0.00014999,2]
[422390831,1778920235000,-500.0,0.00014999,2]
[422390832,1778920235000,-500.0,0.00014999,2]
[422390830,1778920235000,-500.0,0.00014999,2]
[422390828,1778920235000,-500.0,0.00014999,2]
[422390844,1778920235000,-500.0,0.00014999,2]
[422390834,1778920235000,-500.0,0.00014999,2]
[422390833,1778920235000,-522.95350649,0.00014999,2]
[422390835,1778920235000,-500.0,0.00014999,2]
[422390836,1778920235000,-500.0,0.00014999,2]
[422390840,1778920235000,-500.0,0.00014999,2]
[422390837,1778920235000,-628.81,0.00014999,2]
[422390838,1778920235000,-500.0,0.00014999,2]
[422390843,1778920235000,-500.0,0.00014999,2]
[422390839,1778920235000,-500.0,0.00014999,2]
[422390841,1778920235000,-500.0,0.00014999,2]
[422390842,1778920235000,-500.0,0.00014999,2]
[422390845,1778920235000,-500.0,0.00014999,2]
[422390786,1778920235000,-529.15392376,0.00014999,2]
[422390814,1778920235000,-500.0,0.00014999,2]
[422390818,1778920235000,-500.0,0.00014999,2]
[422390749,1778920235000,-531.95367997,0.00014999,2]
[422390815,1778920235000,-512.57749196,0.00014999,2]
[422390817,1778920235000,-500.0,0.00014999,2]
[422390794,1778920235000,-529.15392376,0.00014999,2]
[422390789,1778920235000,-529.15392376,0.00014999,2]
[422390792,1778920235000,-529.15392376,0.00014999,2]
[422390787,1778920235000,-529.15392376,0.00014999,2]
[422390788,1778920235000,-529.15392376,0.00014999,2]
[422390791,1778920235000,-529.15392376,0.00014999,2]
[422390797,1778920235000,-529.15392376,0.00014999,2]
[422390807,1778920235000,-500.0,0.00014999,2]
[422390798,1778920235000,-529.15392376,0.00014999,2]
[422390796,1778920235000,-529.15392376,0.00014999,2]
[422390808,1778920235000,-504.08398651,0.00014999,2]
[422390805,1778920235000,-529.15392377,0.00014999,2]
[422390790,1778920235000,-529.15392376,0.00014999,2]
[422390806,1778920235000,-529.15392377,0.00014999,2]
[422390816,1778920235000,-500.0,0.00014999,2]
[422390802,1778920235000,-529.15392377,0.00014999,2]
[422390809,1778920235000,-171.10496896,0.00014999,2]
[422390812,1778920235000,-500.0,0.00014999,2]
[422390813,1778920235000,-314.56,0.00014999,2]
[422390820,1778920235000,-500.0,0.00014999,2]
[422390811,1778920235000,-500.0,0.00014999,2]
[422390803,1778920235000,-529.15392377,0.00014999,2]
[422390800,1778920235000,-529.15392377,0.00014999,2]
[422390799,1778920235000,-529.15392376,0.00014999,2]
[422390804,1778920235000,-529.15392377,0.00014999,2]
[422390801,1778920235000,-529.15392377,0.00014999,2]
[422390810,1778920235000,-500.0,0.00014999,2]
[422390863,1778920236000,-500.0,0.00014999,2]
[422390865,1778920236000,-500.0,0.00014999,2]
[422390862,1778920236000,-500.0,0.00014999,2]
[422390867,1778920236000,-500.0,0.00014999,2]
[422390871,1778920236000,-500.0,0.00014999,2]
[422390872,1778920236000,-500.0,0.00014999,2]
[422390883,1778920236000,-500.0,0.00014999,2]
[422390874,1778920236000,-500.0,0.00014999,2]
[422390882,1778920236000,-500.0,0.00014999,2]
[422390879,1778920236000,-500.0,0.00014999,2]
[422390881,1778920236000,-500.0,0.00014999,2]
[422390877,1778920236000,-500.0,0.00014999,2]
[422390866,1778920236000,-500.0,0.00014999,2]
[422390875,1778920236000,-200.16128818,0.00014999,2]
[422390868,1778920236000,-500.0,0.00014999,2]
[422390853,1778920236000,-500.0,0.00014999,2]
[422390861,1778920236000,-500.0,0.00014999,2]
[422390846,1778920236000,-500.0,0.00014999,2]
[422390856,1778920236000,-500.0,0.00014999,2]
[422390850,1778920236000,-500.0,0.00014999,2]
[422390847,1778920236000,-500.0,0.00014999,2]
[422390880,1778920236000,-500.0,0.00014999,2]
[422390857,1778920236000,-500.0,0.00014999,2]
[422390848,1778920236000,-500.0,0.00014999,2]
[422390864,1778920236000,-500.0,0.00014999,2]
[422390852,1778920236000,-500.0,0.00014999,2]
[422390854,1778920236000,-500.0,0.00014999,2]
[422390855,1778920236000,-500.0,0.00014999,2]
[422390859,1778920236000,-500.0,0.00014999,2]
[422390858,1778920236000,-500.0,0.00014999,2]
[422390870,1778920236000,-500.0,0.00014999,2]
[422390860,1778920236000,-500.0,0.00014999,2]
[422390869,1778920236000,-500.0,0.00014999,2]
[422390851,1778920236000,-500.0,0.00014999,2]
[422390876,1778920236000,-500.0,0.00014999,2]
[422390873,1778920236000,-500.0,0.00014999,2]
[422390885,1778920236000,-500.0,0.00014999,2]
[422390902,1778920236000,-300.0,0.00014999,2]
[422390900,1778920236000,-300.0,0.00014999,2]
[422390903,1778920236000,-300.0,0.00014999,2]
[422390905,1778920236000,-300.0,0.00014999,2]
[422390912,1778920236000,-713.0,0.00015,5]
[422390921,1778920236000,-8625.37287851,0.00015,2]
[422390916,1778920236000,-27510.49113062,0.00015,2]
[422390913,1778920236000,-927.0,0.00015,5]
[422390915,1778920236000,-150.0,0.00015,2]
[422390917,1778920236000,-1149.99016759,0.00015,2]
[422390914,1778920236000,-150.0,0.00015,2]
[422390920,1778920236000,-947.66880428,0.00015,2]
[422390919,1778920236000,-8073.70803725,0.00015,2]
[422390918,1778920236000,-2649.0,0.00015,2]
[422390878,1778920236000,-500.0,0.00014999,2]
[422390898,1778920236000,-325.97461365,0.00014999,2]
[422390901,1778920236000,-238.8923524,0.00014999,2]
[422390886,1778920236000,-500.0,0.00014999,2]
[422390909,1778920236000,-300.0,0.00014999,2]
[422390896,1778920236000,-500.0,0.00014999,2]
[422390899,1778920236000,-300.0,0.00014999,2]
[422390888,1778920236000,-500.0,0.00014999,2]
[422390884,1778920236000,-500.0,0.00014999,2]
[422390895,1778920236000,-500.0,0.00014999,2]
[422390889,1778920236000,-500.0,0.00014999,2]
[422390892,1778920236000,-500.0,0.00014999,2]
[422390887,1778920236000,-500.0,0.00014999,2]
[422390893,1778920236000,-500.0,0.00014999,2]
[422390891,1778920236000,-500.0,0.00014999,2]
[422390894,1778920236000,-500.0,0.00014999,2]
[422390897,1778920236000,-500.0,0.00014999,2]
[422390911,1778920236000,-300.0,0.00014999,2]
[422390910,1778920236000,-666.0,0.00014999,2]
[422390907,1778920236000,-300.0,0.00014999,2]
[422390890,1778920236000,-500.0,0.00014999,2]
[422390930,1778920238000,-1272879.43735309,0.00015,2]
[422390925,1778920238000,-273.05334531,0.00014752,2]
[422390926,1778920238000,-505.18831308,0.00014752,2]
[422390927,1778920238000,-2219.48941423,0.00015,2]
[422390928,1778920238000,-1450.80311392,0.00015,2]
[422390929,1778920238000,-39813.68421793,0.00015,2]
[422390933,1778920238000,-8083.22155272,0.00015,2]
[422390932,1778920238000,-3145.20959537,0.00015,14]
[422390934,1778920238000,-940529.74740799,0.00015,2]
[422390935,1778920238000,-19427.47287327,0.00015,2]
[422390936,1778920238000,-778.24165839,0.00014782,2]
[422390937,1778920238000,-3178.75834161,0.00015,2]
[422390931,1778920238000,-2076.26775754,0.00015,2]
[422391155,1778920240000,-87621.0412118,0.00015,2]
[422391156,1778920240000,-148356.90178436,0.00015,2]
[422391157,1778920240000,-846.22880393,0.00015,2]
[422391159,1778920240000,-458.87313864,0.00015,2]
[422391161,1778920240000,-3114.16252253,0.00015,2]
[422391158,1778920240000,-272.24010028,0.00015,2]
[422391160,1778920240000,-792.10950028,0.00015,2]
[422391162,1778920241000,-4449.12715421,0.00015,2]
[422391163,1778920241000,-456.51935647,0.00015,2]
[422391164,1778920241000,-1979.65645078,0.00015,2]
[422391166,1778920241000,-5364.89698861,0.00015,2]
[422391168,1778920241000,-2565.98624479,0.00015,2]
[422391165,1778920241000,-649.29216344,0.00015,2]
[422391167,1778920241000,-14841.65212631,0.00015,2]
[422391173,1778920243000,-4690.99999998,0.00015,2]
[422391176,1778920243000,-2201.99568161,0.00015,2]
[422391174,1778920243000,-262323.8852258,0.00015,2]
[422391175,1778920243000,-188988.10202259,0.00015,2]
[422391179,1778920243000,-436.33222893,0.00014939,2]
[422391180,1778920243000,-1405.34831778,0.00015,2]
[422391178,1778920243000,-778.24165839,0.00014811,2]
[422391177,1778920243000,-510.13958758,0.00015,2]
[422391184,1778920246000,-217320.11817946,0.00015,2]
[422391183,1778920246000,-12263.3796276,0.00015,2]
[422391181,1778920246000,-167.0,0.0001497,2]
[422391182,1778920246000,-1153.14114193,0.00015,2]
[422391239,1778920314000,3000000.0,0.00028,120]
[422391240,1778920318000,150.0,0.00015,120]
[422391270,1778920463000,1372.36,7.721e-05,2]
[422391269,1778920463000,1372.36,7.349e-05,2]
[422391274,1778920463000,1372.36,8.464e-05,2]
[422391275,1778920463000,1367.34802543,8.836e-05,2]
[422391273,1778920463000,1372.36,8.092e-05,2]
[422391276,1778920463000,5.01197457,8.836e-05,2]
[422391278,1778920464000,1372.36,9.579e-05,2]
[422391277,1778920464000,1372.36,9.207e-05,2]
[422391279,1778920465000,1372.36,9.95e-05,2]
[422391281,1778920508000,150.0,0.00015,120]
[422391284,1778920698000,150.0,0.00015,120]
[422391285,1778920724000,307.06392283,0.00030136,120]
[422391287,1778920845000,250.0,0.00014986,120]
[422391288,1778920887000,150.0,0.00015,120]
[422391292,1778921075000,150.0,0.00015,120]
[422391293,1778921165000,250.0,0.00014986,120]
[422391300,1778921202000,-248.31945124,0.00010322,2]
[422391304,1778921265000,150.0,0.00015,120]
[422391306,1778921331000,612.27334466,0.0003013,120]
[422391307,1778921363000,250.0,0.00014986,120]
[422391309,1778921391000,1350.4,0.00030136,120]
[422391311,1778921397000,500.0,0.0001,45]
[422391310,1778921397000,500.0,0.0001,45]
[422391312,1778921398000,500.0,0.0001,45]
[422391313,1778921398000,500.0,0.0001,45]
[422391315,1778921399000,500.0,0.0001,45]
[422391314,1778921399000,500.0,0.0001,45]
[422391320,1778921400000,1037.18,7.687e-05,2]
[422391319,1778921400000,1037.18,7.334e-05,2]
[422391318,1778921400000,500.0,0.0001,45]
[422391317,1778921400000,1037.18,6.981e-05,2]
[422391316,1778921400000,500.0,0.0001,45]
[422391326,1778921401000,1037.18,9.452e-05,2]
[422391325,1778921401000,1037.18,9.099e-05,2]
[422391324,1778921401000,345.17197457,8.746e-05,2]
[422391323,1778921401000,692.00802543,8.746e-05,2]
[422391322,1778921401000,1037.18,8.393e-05,2]
[422391321,1778921401000,1037.18,8.04e-05,2]
[422391328,1778921402000,221.53,0.0003013,120]
[422391327,1778921402000,1037.18,9.805e-05,2]
[422391329,1778921404000,283.0,0.00028422,120]
[422391330,1778921406000,283.0,0.00029843,120]
[422391331,1778921427000,176.0,0.00028562,120]
[422391332,1778921429000,176.0,0.0002999,120]
[422391361,1778921431000,-150.0,0.00013488,2]
[422391356,1778921431000,-783.905193,0.00013335,2]
[422391358,1778921431000,-5.794097,0.00013433,2]
[422391357,1778921431000,-349.435903,0.00013433,2]
[422391355,1778921431000,-253.274807,0.00013335,2]
[422391351,1778921431000,-1050.04719996,0.00013294,2]
[422391353,1778921431000,-879.94201801,0.00013294,2]
[422391350,1778921431000,-2193.7998,0.00013294,2]
[422391349,1778921431000,-1178.95098203,0.00013294,2]
[422391347,1778921431000,-363.93,0.00013294,2]
[422391340,1778921431000,-1037.18,0.00012276,2]
[422391342,1778921431000,-1037.18,0.00012982,2]
[422391348,1778921431000,-4135.65,0.00013294,2]
[422391345,1778921431000,-24999.99,0.00013293,2]
[422391344,1778921431000,-2792.2,0.00013293,2]
[422391343,1778921431000,-1200.0,0.00013293,2]
[422391339,1778921431000,-1037.18,0.00011923,2]
[422391341,1778921431000,-1037.18,0.00012629,2]
[422391338,1778921431000,-1037.18,0.0001157,2]
[422391337,1778921431000,-1037.18,0.00011217,2]
[422391334,1778921431000,-1037.18,0.00010158,2]
[422391335,1778921431000,-1037.18,0.00010511,2]
[422391363,1778921431000,-870.895903,0.00013518,2]
[422391346,1778921431000,-150.0,0.00013294,2]
[422391359,1778921431000,-150.0,0.00013454,2]
[422391336,1778921431000,-1037.18,0.00010864,2]
[422391366,1778921431000,-1129.104097,0.00013518,2]
[422391368,1778921431000,-729.88617487,0.00013538,2]
[422391414,1778921431000,-501.3,0.000148,2]
[422391412,1778921431000,-1728.48246333,0.000148,2]
[422391403,1778921431000,-320.0,0.00014761,2]
[422391415,1778921431000,-361.54,0.000148,2]
[422391405,1778921431000,-6111.0,0.00014775,2]
[422391406,1778921431000,-264.23131303,0.00014779,2]
[422391404,1778921431000,-295.66902596,0.00014772,2]
[422391398,1778921431000,-461.44,0.00014652,2]
[422391408,1778921431000,-5000.01,0.0001478,2]
[422391395,1778921431000,-15000.0,0.00014645,2]
[422391396,1778921431000,-15000.0,0.00014648,2]
[422391410,1778921431000,-295.66902596,0.00014788,2]
[422391400,1778921431000,-295.66902598,0.00014756,2]
[422391377,1778921431000,-1037.18,0.00013688,2]
[422391393,1778921431000,-1680.0,0.00014622,2]
[422391381,1778921431000,-163.0,0.0001404,2]
[422391383,1778921431000,-384.23058169,0.0001425,2]
[422391370,1778921431000,-170.64,0.00013593,2]
[422391385,1778921431000,-152.0,0.00014355,7]
[422391379,1778921431000,-175.0,0.0001376,2]
[422391389,1778921431000,-6111.0,0.00014601,2]
[422391372,1778921431000,-224.14,0.00013649,2]
[422391387,1778921431000,-255.0,0.00014411,2]
[422391391,1778921431000,-15000.0,0.00014606,2]
[422391375,1778921431000,-4999.99,0.00013649,2]
[422391423,1778921432000,-790.79521473,0.00014811,2]
[422391425,1778921432000,-1728.48246329,0.00014814,2]
[422391427,1778921432000,-295.66902596,0.0001482,2]
[422391429,1778921432000,-7258.94772157,0.00014821,2]
[422391431,1778921432000,-790.79521473,0.00014822,2]
[422391433,1778921432000,-1728.48246329,0.00014829,2]
[422391435,1778921432000,-6111.0,0.00014836,2]
[422391419,1778921432000,-790.7952148,0.000148,2]
[422391417,1778921432000,-298.15,0.000148,2]
[422391421,1778921432000,-295.66902596,0.00014804,2]
[422391439,1778921432000,-320.0,0.0001484,2]
[422391451,1778921432000,-1728.48246329,0.00014871,2]
[422391441,1778921432000,-1728.48246329,0.00014843,2]
[422391460,1778921432000,-4727.85203348,0.000149,2]
[422391437,1778921432000,-295.66902596,0.00014836,2]
[422391457,1778921432000,-295.66902596,0.00014884,2]
[422391458,1778921432000,-1728.48246329,0.00014886,2]
[422391453,1778921432000,-320.0,0.00014874,2]
[422391459,1778921432000,-126776.05579261,0.000149,2]
[422391455,1778921432000,-200.0,0.0001488,2]
[422391447,1778921432000,-1728.48246329,0.00014857,2]
[422391445,1778921432000,-295.66902596,0.00014852,2]
[422391443,1778921432000,-10000.0,0.0001485,2]
[422391449,1778921432000,-295.66902596,0.00014868,2]
[422391467,1778921437000,-186.0,0.00014914,2]
[422391461,1778921437000,-790.79521473,0.00014833,2]
[422391466,1778921437000,-1728.48246329,0.000149,2]
[422391465,1778921437000,-295.66902596,0.000149,2]
[422391469,1778921437000,-320.0,0.00014971,2]
[422391471,1778921437000,-607.79,0.00014985,2]
[422391462,1778921437000,-129796.85527391,0.000149,2]
[422391464,1778921437000,-5000.0,0.000149,2]
[422391463,1778921437000,-80689.8196,0.000149,2]
[422391470,1778921437000,-747.14,0.00014985,2]
[422391477,1778921437000,-442.2518615,0.00014999,2]
[422391473,1778921437000,-320.0,0.00014997,2]
[422391468,1778921437000,-332.0,0.0001496,2]
[422391478,1778921437000,-500.0,0.00014999,2]
[422391481,1778921437000,-500.0,0.00014999,2]
[422391479,1778921437000,-500.0,0.00014999,2]
[422391480,1778921437000,-500.0,0.00014999,2]
[422391476,1778921437000,-500.0,0.00014999,2]
[422391475,1778921437000,-500.0,0.00014999,2]
[422391474,1778921437000,-500.0,0.00014999,2]
[422391472,1778921437000,-151.0,0.00014997,2]
[422391482,1778921437000,-500.0,0.00014999,2]
[422391504,1778921438000,-552.00204455,0.00014999,2]
[422391501,1778921438000,-500.0,0.00014999,2]
[422391505,1778921438000,-383.09193491,0.00014999,2]
[422391500,1778921438000,-500.0,0.00014999,2]
[422391502,1778921438000,-500.0,0.00014999,2]
[422391503,1778921438000,-500.0,0.00014999,2]
[422391507,1778921438000,-252.58135077,0.00014999,2]
[422391527,1778921438000,-500.0,0.00014999,2]
[422391513,1778921438000,-500.0,0.00014999,2]
[422391516,1778921438000,-500.0,0.00014999,2]
[422391523,1778921438000,-500.0,0.00014999,2]
[422391506,1778921438000,-500.0,0.00014999,2]
[422391525,1778921438000,-500.0,0.00014999,2]
[422391518,1778921438000,-500.0,0.00014999,2]
[422391530,1778921438000,-500.0,0.00014999,2]
[422391511,1778921438000,-307.42855426,0.00014999,2]
[422391509,1778921438000,-500.0,0.00014999,2]
[422391495,1778921438000,-500.0,0.00014999,2]
[422391499,1778921438000,-500.0,0.00014999,2]
[422391484,1778921438000,-500.0,0.00014999,2]
[422391483,1778921438000,-500.0,0.00014999,2]
[422391487,1778921438000,-500.0,0.00014999,2]
[422391488,1778921438000,-500.0,0.00014999,2]
[422391485,1778921438000,-500.0,0.00014999,2]
[422391520,1778921438000,-500.0,0.00014999,2]
[422391496,1778921438000,-500.0,0.00014999,2]
[422391490,1778921438000,-500.0,0.00014999,2]
[422391491,1778921438000,-500.0,0.00014999,2]
[422391489,1778921438000,-500.0,0.00014999,2]
[422391486,1778921438000,-500.0,0.00014999,2]